[Event "Aktobe Open 2022"]
[Site "Aktobe"]
[Date "2022.06.20"]
[Round "9.6"]
[White "Balmagambetov, Timur"]
[Black "Afanasiev, Nikita"]
[Result "0-1"]
[ECO "B40"]
[WhiteElo "1957"]
[BlackElo "2567"]
[Annotator "TA"]
[PlyCount "80"]
[EventDate "2022.06.14"]
[EventType "swiss"]
[EventCountry "KAZ"]
[SourceTitle "playchess.com"]
[Source "ChessBase"]
[SourceQuality "1"]
[TimeControl "5400+30"]

{[%evp 9,79,18,19,14,34,32,33,36,29,30,51,43,32,15,39,20,27,28,18,20,27,12,23,-22,-27,-52,-37,-70,-74,-73,-61,-69,-47,-69,-79,-69,-69,-166,-170,-231,-236,-203,-58,-37,-66,-43,-40,-57,-59,-262,-236,-687,-703,-5493,-5493,-5410,-5402,-5402,-5389,-29992,-29993,-29993,-29994,-29994,-29995,-29995,-29996,-29996,-29997,-29997,-29998,-29999]} 1. e4 {[%emt 0:00:03]} c5 {[%emt 0:04:27]} 2. Nf3 {[%emt 0:00:07]} e6 {[%emt 0:01:02]} 3. g3 {[%emt 0:00:08]} d5 {[%emt 0:01:25]} 4. exd5 {[%emt 0:00:15]} exd5 {[%emt 0:00:10]} 5. d4 {[%emt 0:00:04]} Nc6 {[%emt 0:01:16]} 6. Bg2 {[%emt 0:00:09] B40: Sicilian: 2...e6, Unusual lines.} Bd6 {[%emt 0:03:59]} 7. O-O {[%emt 0:04:03][%cal Oc2c4]} Nge7 {[%emt 0:00:04]} 8. dxc5 {[%emt 0:00:20] White is slightly better.} Bxc5 {[%emt 0:00:04]} 9. Nbd2 {[%emt 0:00:04]} O-O {[%emt 0:00:26]} 10. Nb3 {[%emt 0:00:04]} Bb6 {[%emt 0:00:10]} 11. c3 {[%emt 0:00:36] [#]} Bf5 $146 {[%emt 0:03:39]} ({Predecessor:} 11... Bg4 12. h3 Bh5 13. Re1 Re8 14. Be3 Bc7 15. Qd2 a5 16. a4 Bb6 17. Bxb6 Qxb6 {1-0 (27) Giri,A (2752)-Agdestein,S (2628) Flor/Fjaere 2014}) 12. Re1 {[%emt 0:01:20]} Be4 {[%emt 0:00:37]} 13. Be3 {[%emt 0:00:11]} Nf5 {[%emt 0:01:33]} 14. Bxb6 {[%emt 0:00:59]} Qxb6 {[%emt 0:00:05]} 15. Qd2 {[%emt 0:02:25]} Nd6 {[%emt 0:00:25]} 16. Nfd4 {[%emt 0:27:53][%cal Bf3d4,Bd4c2,Bc2e1][%mdl 32]} Ne5 {[%emt 0:03:37]} 17. Qe2 {[%emt 0:02:59] Threatens to win with f3.} Rfe8 {[%emt 0:02:57]} 18. Bxe4 {[%emt 0:07:48]} dxe4 {[%emt 0:00:53]} 19. Red1 {[%emt 0:01:44]} Nd3 {[%emt 0:08:21]} 20. Rab1 {[%emt 0:09:22]} Rac8 {[%emt 0:01:31]} 21. Nc2 {[%emt 0:02:03]} Nc4 {[%emt 0:03:58]} 22. Ne1 {[%emt 0:03:27]} Qg6 {[%emt 0:09:32] 0x0.0022294719aadp-1022s more active pieces. The white rooks are badly placed.} 23. Kh1 {[%emt 0:07:57]} (23. Nd4 $15) 23... Qg4 $1 $36 {[%emt 0:07:12][%mdl 2048] White is under strong pressure.} 24. f3 {[%emt 0:04:41]} (24. Qxg4 {was called for.} Nxf2+ 25. Kg1 Nxg4 26. Rd7) 24... Qg6 {[%emt 0:02:57] ...Ncxb2 is the strong threat.} 25. f4 {[%emt 0:00:18] [#]} ({Much weaker is} 25. Nxd3 exd3 26. Qf1 Re2) 25... Qa6 {[%emt 0:07:10]} ({Black should try} 25... h5 $1 $19 {[%cal Oh5h4] Strongly threatening ...h4!} 26. Nd4 h4) 26. Nxd3 $15 {[%emt 0:04:53]} exd3 {[%emt 0:00:11]} 27. Qxd3 {[%emt 0:00:03]} Qxa2 {[%emt 0:00:19]} 28. Nc1 {[%emt 0:00:46]} Qa4 {[%emt 0:01:42] Hoping for ...Qc6+.} 29. Qf3 {[%emt 0:02:18] Now White is beyond hope.} ({Only move:} 29. Kg1 $1 $15 Ne3 30. Rd2) 29... Re3 $19 {[%emt 0:06:25]} 30. b3 $2 {[%emt 0:00:05] [#]} (30. Qd5 Nb6 31. Qd2) 30... Qe8 $1 {[%emt 0:01:00]} 31. Qxb7 {[%emt 0:01:17]} (31. Qf2 Qe4+) 31... Re1+ {[%emt 0:01:27]} 32. Rxe1 {[%emt 0:00:01]} Qxe1+ {[%emt 0:00:05]} 33. Kg2 {[%emt 0:00:05]} Ne3+ {[%emt 0:00:04]} 34. Kh3 {[%emt 0:00:05]} Qf1+ {[%emt 0:03:55] Black mates.} 35. Kh4 {[%emt 0:00:05]} g5+ {[%emt 0:00:46][%mdl 64] Deflection} 36. Kxg5 {[%emt 0:00:56]} Qh3 {[%emt 0:00:25]} 37. Qe4 {[%emt 0:01:54]} Rc5+ {[%emt 0:00:26]} 38. Kf6 {[%emt 0:00:16]} Qh6+ {[%emt 0:00:10]} 39. Ke7 {[%emt 0:00:10]} Rc7+ {[%emt 0:00:05]} 40. Ke8 {[%emt 0:00:19]} Qf8# {[%emt 0:00:05] Weighted Error Value: White=0.61/Black=0.09 (flawless)} 0-1

[Event "Aktobe Open 2022"]
[Site "Aktobe"]
[Date "2022.06.20"]
[Round "9.7"]
[White "Makhnev, Denis"]
[Black "Amanov, Zhanibek"]
[Result "1-0"]
[ECO "D23"]
[WhiteElo "2505"]
[BlackElo "2332"]
[Annotator "TA"]
[PlyCount "52"]
[EventDate "2022.06.14"]
[EventType "swiss"]
[EventCountry "KAZ"]
[SourceTitle "playchess.com"]
[Source "ChessBase"]
[SourceQuality "1"]
[TimeControl "5400+30"]

{[%evp 13,52,18,10,12,15,8,2,0,24,14,10,9,18,0,0,0,-4,0,0,0,0,0,-18,-26,53,37,97,104,110,61,68,54,48,51,79,95,117,105,173,181,213]} 1. d4 {[%emt 0:00:05]} d5 {[%emt 0:02:07]} 2. Nf3 {[%emt 0:00:09]} Nf6 {[%emt 0:00:18]} 3. c4 {[%emt 0:00:07]} c6 {[%emt 0:00:54]} 4. Qc2 {[%emt 0:00:28]} dxc4 {[%emt 0:01:04]} 5. Qxc4 {[%emt 0:00:08]} Bf5 {[%emt 0:00:18]} 6. g3 {[%emt 0:00:09]} e6 {[%emt 0:00:18]} 7. Bg2 {[%emt 0:00:07]} Be7 {[%emt 0:00:54]} 8. O-O {[%emt 0:00:18] D23: Queen's Gambit Accepted: 3 Nf3 Nf6 sidelines.} O-O {[%emt 0:00:18]} 9. Nbd2 {[%emt 0:00:19]} h6 {[%emt 0:08:35]} 10. Qb3 {[%emt 0:01:17] The position is equal.} Qb6 {[%emt 0:00:31]} 11. Nc4 {[%emt 0:00:15]} Qa6 {[%emt 0:00:55]} 12. Bf4 {[%emt 0:01:46]} Rd8 {[%emt 0:01:24] [#]} 13. Rfe1 $146 {[%emt 0:26:03]} ({Predecessor:} 13. Rfc1 Be4 14. Bf1 c5 15. Ncd2 cxd4 16. Nxe4 Nxe4 17. Nxd4 Nc5 18. Qf3 Nbd7 19. b4 {1-0 (37) Mis,M (2417)-Luczak,F (2273) Pokrzywna 2021}) 13... Be4 {[%emt 0:16:23]} 14. Ncd2 {[%emt 0:00:30]} Bh7 {[%emt 0:03:33]} 15. e4 {[%emt 0:27:55]} Qb6 {[%emt 0:17:26] Prevents Bc7.} 16. Qc2 {[%emt 0:03:06]} c5 {[%emt 0:12:15]} 17. Nc4 {[%emt 0:10:54]} Qb5 {[%emt 0:09:27]} 18. Bc7 {[%emt 0:09:23]} Rc8 {[%emt 0:02:11]} (18... Rd7 $11 19. a4 Qa6 20. Bxb8 Rxb8) 19. Bd6 $1 $36 {[%emt 0:04:58][%mdl 2048] White is pushing.} Qd7 {[%emt 0:07:30]} ({Black should try} 19... cxd4 $14 20. Bxe7 Qxc4 21. Qxc4 Rxc4) 20. Nfe5 $16 {[%emt 0:00:31]} Qd8 {[%emt 0:00:53] [#]} 21. Bxc5 {[%emt 0:02:22] 0x0.001b68b52ab9dp-1022s more active pieces. The black rooks are badly placed.} (21. Qb3 $1 $16 {[%cal Rb3b7]} Bxd6 22. Qxb7 (22. Nxd6 $2 Qxd6 23. Nxf7 Kxf7 $19) 22... Bxe5 23. dxe5) 21... Bxc5 $14 {[%emt 0:03:06]} 22. dxc5 {[%emt 0:00:06]} Rxc5 {[%emt 0:01:36]} 23. Rad1 {[%emt 0:00:38]} Qe7 {[%emt 0:00:23]} 24. Qb3 {[%emt 0:04:15][%cal Ob3b7] aiming for Qxb7!} Nc6 {[%emt 0:07:09]} 25. Nd3 {[%emt 0:03:04]} Rh5 {[%emt 0:02:47]} (25... Nd4 $16 26. Qb4 (26. Qc3 Rd8 $11) 26... Rc7 27. Qxe7 Rxe7) 26. Qc3 $18 {[%emt 0:00:06]} g5 {[%emt 0:01:15] Weighted Error Value: White=0.06 (flawless) /Black=0.20 (precise)} 1-0

[Event "Aktobe Open 2022"]
[Site "Aktobe"]
[Date "2022.06.20"]
[Round "9.8"]
[White "Sadubayev, Airat"]
[Black "Urazayev, Arystanbek"]
[Result "1/2-1/2"]
[ECO "C45"]
[WhiteElo "2317"]
[BlackElo "2445"]
[Annotator "TA"]
[PlyCount "78"]
[EventDate "2022.06.14"]
[EventType "swiss"]
[EventCountry "KAZ"]
[SourceTitle "playchess.com"]
[Source "ChessBase"]
[SourceQuality "1"]
[TimeControl "5400+30"]

{[%evp 17,78,9,29,6,4,-4,-4,-10,-6,-9,-18,-16,24,22,59,-16,-16,-17,-16,-17,0,0,0,0,0,0,0,0,0,0,0,17,5,-24,0,0,0,0,0,0,0,-8,0,0,0,0,0,0,0,0,0,0,1,0,0,0,0,0,0,0,0,0,0]} 1. e4 {[%emt 0:00:04]} e5 {[%emt 0:00:52]} 2. Nf3 {[%emt 0:00:13]} Nc6 {[%emt 0:00:05]} 3. d4 {[%emt 0:00:11]} exd4 {[%emt 0:00:06]} 4. Nxd4 {[%emt 0:00:07]} Nf6 {[%emt 0:00:03]} 5. Nxc6 {[%emt 0:00:12]} bxc6 {[%emt 0:00:03]} 6. e5 {[%emt 0:00:10]} Qe7 {[%emt 0:00:02]} 7. Qe2 {[%emt 0:00:09]} Nd5 {[%emt 0:00:02]} 8. c4 {[%emt 0:00:10]} Nb6 {[%emt 0:00:03]} 9. Nc3 {[%emt 0:00:22]} a5 {[%emt 0:00:19]} 10. Bd2 {[%emt 0:06:51] C45: Scotch Game.} Ba6 {[%emt 0:00:13]} 11. Qe4 {[%emt 0:04:39]} g6 {[%emt 0:00:57]} 12. O-O-O {[%emt 0:13:00]} Bg7 {[%emt 0:01:24]} 13. h4 {[%emt 0:02:43]} O-O $1 {[%emt 0:07:02]} 14. f4 {[%emt 0:02:46] [#]} Qe6 $146 {[%emt 0:06:44][%cal Ra6c4]} ({Predecessor:} 14... f5 15. Qc2 Nxc4 16. Na4 Nxd2 17. Bxa6 Ne4 18. Bc4+ Kh8 19. h5 Ng3 20. hxg6 Nxh1 21. Rxh1 {1-0 (45) Drake Diez De Rivera,P (2484)-Eger,A (2413) ICCF email 2004}) 15. c5 {[%emt 0:12:55]} Nc4 {[%emt 0:04:13]} 16. h5 {[%emt 0:02:19]} (16. Be1 $1 $14) 16... d5 $11 {[%emt 0:09:24][%cal Bd7d5,Bd5d4][%mdl 32]} 17. Qc2 {[%emt 0:09:49]} d4 {[%emt 0:08:30]} 18. Ne4 {[%emt 0:06:26]} Nxd2 {[%emt 0:00:15]} 19. Rxd2 {[%emt 0:01:23] [#] Threatens to win with h6.} Bxf1 {[%emt 0:13:22]} 20. Rxf1 {[%emt 0:02:12]} Qxa2 {[%emt 0:00:13]} 21. Rxd4 {[%emt 0:01:10][%cal Oh5h6]} a4 {[%emt 0:00:12]} 22. Rd3 {[%emt 0:21:04]} a3 {[%emt 0:04:46]} 23. bxa3 {[%emt 0:04:52]} Qa1+ {[%emt 0:00:24]} 24. Qb1 {[%emt 0:00:03]} Rxa3 {[%emt 0:00:22]} 25. Rff3 {[%emt 0:01:57]} Rb8 {[%emt 0:03:30]} 26. Qxa1 {[%emt 0:00:14] Dancing on a razor blade. Active counter play! The position is equal.} Rxa1+ {[%emt 0:00:06]} 27. Kc2 {[%emt 0:00:12]} Ra2+ {[%emt 0:00:30]} 28. Kc3 {[%emt 0:00:21]} Rxg2 {[%emt 0:00:31]} 29. hxg6 {[%emt 0:00:21]} hxg6 {[%emt 0:00:13]} 30. Rd7 {[%emt 0:00:23]} Re2 {[%emt 0:10:32]} 31. Ng5 {[%emt 0:01:13]} Ra2 {[%emt 0:11:04]} 32. Rfd3 {[%emt 0:01:32] Rd8+ is the strong threat.} Bh6 {[%emt 0:00:14]} 33. Rxc7 {[%emt 0:01:31]} Bxg5 {[%emt 0:09:57]} 34. fxg5 {[%emt 0:00:05][%mdl 4096] Endgame KRR-KRR} Re2 {[%emt 0:00:09]} 35. Re7 {[%emt 0:01:57][%cal Oe5e6]} Rg2 {[%emt 0:03:01]} 36. Rd6 {[%emt 0:01:27]} Rg3+ {[%emt 0:00:13]} 37. Kc2 {[%emt 0:00:47]} Rg2+ {[%emt 0:00:27]} 38. Kc3 {[%emt 0:00:14]} Rg3+ {[%emt 0:00:28]} 39. Kc2 {[%emt 0:00:16]} Rg2+ {[%emt 0:03:08] Weighted Error Value: White=0.07 (flawless) /Black=0.04 (flawless)} 1/2-1/2

[Event "Aktobe Open 2022"]
[Site "Aktobe"]
[Date "2022.06.20"]
[Round "9.9"]
[White "Kuderinov, Kirill"]
[Black "Bekturov, Tamerlan"]
[Result "1-0"]
[ECO "B04"]
[WhiteElo "2409"]
[BlackElo "2241"]
[Annotator "TA"]
[PlyCount "81"]
[EventDate "2022.06.14"]
[EventType "swiss"]
[EventCountry "KAZ"]
[SourceTitle "playchess.com"]
[Source "ChessBase"]
[SourceQuality "1"]
[TimeControl "5400+30"]

{[%evp 26,81,-10,-16,-21,-8,-10,-26,0,0,0,0,14,8,0,0,35,27,19,0,60,62,63,62,62,62,62,62,89,62,62,62,83,64,82,98,106,110,109,100,145,133,154,111,147,139,134,135,456,465,459,437,722,738,729,695,965,752]} 1. e4 {[%emt 0:10:22]} Nf6 {[%emt 0:00:07]} 2. e5 {[%emt 0:02:27]} Nd5 {[%emt 0:00:06]} 3. d4 {[%emt 0:00:36]} d6 {[%emt 0:00:05]} 4. exd6 {[%emt 0:01:44]} cxd6 {[%emt 0:00:12]} 5. Nf3 {[%emt 0:01:44]} g6 {[%emt 0:00:12]} 6. Be2 {[%emt 0:04:19]} Bg7 {[%emt 0:00:21]} 7. O-O {[%emt 0:00:12]} O-O {[%emt 0:00:26]} 8. c4 {[%emt 0:00:12]} Nb6 {[%emt 0:01:43]} 9. Nc3 {[%emt 0:00:50]} Bg4 {[%emt 0:00:46]} 10. Be3 {[%emt 0:06:24]} Nc6 {[%emt 0:08:40]} 11. b3 {[%emt 0:00:17]} d5 {[%emt 0:03:59]} 12. c5 {[%emt 0:02:13]} Nc8 {[%emt 0:00:07]} 13. h3 {[%emt 0:12:31]} Bxf3 {[%emt 0:00:07]} 14. Bxf3 {[%emt 0:00:04]} e6 {[%emt 0:00:09] B04: Alekhine's Defence: 4 Nf3.} 15. Ne2 {[%emt 0:11:06]} N8e7 {[%emt 0:05:53]} 16. Ng3 {[%emt 0:00:06]} Nf5 {[%emt 0:19:41] Black has an edge.} 17. Nxf5 {[%emt 0:00:10]} gxf5 {[%emt 0:00:04] [#]} 18. Qd2 $146 {[%emt 0:04:45]} ({Predecessor:} 18. Qd3 Qf6 19. Rac1 Nxd4 20. Bxd4 Qxd4 21. Qxd4 Bxd4 22. Rfd1 Be5 23. c6 bxc6 24. Rxc6 {0-1 (68) Wysocki,J-Cunningham,R Lansing 1987}) 18... Qf6 {[%emt 0:00:52][%cal Rc6d4]} 19. Rad1 {[%emt 0:00:10]} f4 {[%emt 0:00:13]} 20. Bxf4 {[%emt 0:00:06] aiming for Be3.} Nxd4 {[%emt 0:00:11]} 21. Bg4 {[%emt 0:00:23]} Qg6 {[%emt 0:03:56]} 22. Be3 {[%emt 0:03:06] This bishop pair is nice.} Nf5 {[%emt 0:14:55]} ({Black should try} 22... Nb5 $11) 23. Bxf5 $14 {[%emt 0:01:17]} Qxf5 {[%emt 0:02:27]} 24. f4 {[%emt 0:08:44]} h5 {[%emt 0:10:47]} 25. Bd4 {[%emt 0:01:04]} Bxd4+ {[%emt 0:01:23]} 26. Qxd4 {[%emt 0:00:05]} Kh7 {[%emt 0:01:01]} 27. Rde1 {[%emt 0:04:07]} (27. Rfe1 {looks sharper.} Rg8 28. Kh2 Qg6 29. Qf2) 27... f6 {[%emt 0:00:37] Inhibits Re5.} 28. Rf3 {[%emt 0:01:33]} Rg8 {[%emt 0:01:34]} 29. Qd3 {[%emt 0:01:27] [#] Hoping for Rxe6.} Qxd3 {[%emt 0:03:54]} 30. Rxd3 {[%emt 0:00:02][%mdl 4096] Endgame KRR-KRR} Rge8 {[%emt 0:04:38]} 31. Rde3 {[%emt 0:01:19] White is more active.} Kg6 {[%emt 0:05:03]} 32. Rxe6 {[%emt 0:00:05]} Rxe6 {[%emt 0:01:53]} 33. Rxe6 $16 {[%emt 0:00:02] KR-KR} Kf5 {[%emt 0:00:26]} 34. Rd6 {[%emt 0:00:18]} Ke4 {[%emt 0:00:38]} 35. Rxf6 {[%emt 0:00:30]} d4 {[%emt 0:00:36]} 36. Kf2 {[%emt 0:01:32]} Kd3 $2 {[%emt 0:03:03][%mdl 8192] Black cannot hold the game after this.} (36... Rc8 $16) 37. g4 $18 {[%emt 0:00:59] White is clearly winning.} hxg4 {[%emt 0:00:06]} 38. hxg4 {[%emt 0:00:04][%cal Bh3g4,Bg4g5][%mdl 32] [#] Strongly threatening g5.} Kc2 {[%emt 0:01:46]} (38... Ke4 $142 39. g5 Rh8) 39. c6 {[%emt 0:00:32]} bxc6 {[%emt 0:00:22]} 40. Rxc6+ {[%emt 0:00:09]} Kd2 {[%emt 0:00:14]} 41. g5 {[%emt 0:00:51] Weighted Error Value: White=0.03 (flawless) /Black=0.43} 1-0

[Event "Aktobe Open 2022"]
[Site "Aktobe"]
[Date "2022.06.20"]
[Round "9.10"]
[White "Dauletova, Gulmira"]
[Black "Volkov, Sergey"]
[Result "1/2-1/2"]
[ECO "C07"]
[WhiteElo "2220"]
[BlackElo "2510"]
[Annotator "TA"]
[PlyCount "143"]
[EventDate "2022.06.14"]
[EventType "swiss"]
[EventCountry "KAZ"]
[SourceTitle "playchess.com"]
[Source "ChessBase"]
[SourceQuality "1"]
[TimeControl "5400+30"]

{[%evp 14,143,43,26,24,21,15,0,0,9,11,10,9,0,35,14,16,0,3,0,4,-4,0,0,0,0,0,-7,4,10,12,6,36,0,12,0,0,0,0,-86,-83,-90,-84,-124,-82,-498,-471,-491,-481,-550,-475,-594,-578,-577,-576,-564,-25,-25,-25,-25,-25,-25,-25,-25,-25,-25,-25,-25,-25,-25,-25,-33,0,0,0,0,0,-7,-8,-16,-8,-16,-16,-16,-16,-41,-41,-41,-41,-41,-30,-30,-30,-91,-83,-91,-91,-209,-32,-202,-202,-202,-175,-175,-122,-71,-16,-30,0,0,0,0,0,0,0,0,0,0,0,0,0,0,0,0,0,0,0,0,0,0,0,0]} 1. e4 {[%emt 0:00:08]} e6 {[%emt 0:00:04]} 2. d4 {[%emt 0:00:10]} d5 {[%emt 0:00:06]} 3. Nd2 {[%emt 0:00:13]} a6 {[%emt 0:00:09]} 4. Bd3 {[%emt 0:00:57]} c5 {[%emt 0:00:07]} 5. dxc5 {[%emt 0:00:52]} Bxc5 {[%emt 0:00:26]} 6. Ngf3 {[%emt 0:00:35]} Ne7 {[%emt 0:00:59]} 7. O-O {[%emt 0:04:16]} Nbc6 {[%emt 0:00:26]} 8. a3 {[%emt 0:01:20]} O-O {[%emt 0:01:45] C07: French Tarrasch: 3...c5, 4 Ngf3 and 4 exd5 Qxd5.} 9. exd5 {[%emt 0:05:26]} exd5 {[%emt 0:00:17]} 10. b4 {[%emt 0:01:44]} Bb6 {[%emt 0:02:24] [#]} 11. Bb2 $146 {[%emt 0:00:10]} ({Predecessor:} 11. Nb3 Ng6 12. Re1 Bg4 13. h3 Bxf3 14. Qxf3 Nce5 15. Qf5 Nxd3 16. Qxd3 Qh4 17. Be3 Nf4 18. Qf5 Bc7 19. Rad1 Rfe8 20. g3 g6 21. Qxf4 {1-0 (21) Kilic,E (2241)-Erdogan,A (2090) Antalya 2019}) 11... Bf5 {[%emt 0:02:22]} 12. Nb3 {[%emt 0:06:50]} Rc8 {[%emt 0:02:32]} 13. Nbd4 {[%emt 0:09:46]} Bg6 {[%emt 0:02:31]} 14. Re1 {[%emt 0:09:54]} Nxd4 {[%emt 0:09:08]} 15. Nxd4 {[%emt 0:01:46]} Qd7 {[%emt 0:03:34]} 16. Qf3 {[%emt 0:07:10]} Bxd3 {[%emt 0:03:07]} 17. cxd3 {[%emt 0:03:41]} Bxd4 {[%emt 0:02:30]} 18. Bxd4 {[%emt 0:00:03]} Nc6 {[%emt 0:00:36]} 19. Qf4 {[%emt 0:21:58][%cal Od4g7] aiming for Bxg7!} f6 {[%emt 0:01:57]} 20. Re3 {[%emt 0:12:24]} g5 {[%emt 0:12:30]} 21. Rg3 {[%emt 0:00:05]} h6 {[%emt 0:00:18]} 22. Bc5 {[%emt 0:01:01]} ({Not} 22. Bxf6 $2 Qe6 23. Rxg5+ hxg5 24. Qxg5+ Kf7 $19) 22... Rf7 {[%emt 0:04:26]} (22... Kh7 $5 {[%cal Rg5f4]} 23. Qf3 Ne5 $14) 23. Re1 {[%emt 0:03:28]} (23. Qh4 {seems wilder.} Kh7 24. Qh5 Rg8 25. f4) 23... Kh7 {[%emt 0:05:40]} 24. Qd2 {[%emt 0:01:24]} d4 {[%emt 0:01:41] Prevents Rge3.} 25. f4 {[%emt 0:01:11]} g4 {[%emt 0:03:31]} 26. h3 {[%emt 0:00:30]} (26. f5 $1 $11) 26... f5 $17 {[%emt 0:01:09]} 27. hxg4 {[%emt 0:02:35]} fxg4 {[%emt 0:02:08] [#] White must now prevent ...h5.} 28. Re4 {[%emt 0:03:51][%cal Of4f5]} h5 {[%emt 0:38:07] Hoping for ...h4.} 29. f5 $2 {[%emt 0:00:48][%mdl 8192]} (29. Qe2 $17) 29... Qxf5 $19 {[%emt 0:00:00]} 30. Qe2 {[%emt 0:00:36]} Rd8 {[%emt 0:00:00]} 31. a4 {[%emt 0:00:33]} Rdd7 {[%emt 0:00:00]} 32. b5 {[%emt 0:00:29]} axb5 {[%emt 0:00:00]} 33. axb5 {[%emt 0:00:02]} Qxc5 {[%emt 0:00:00]} 34. bxc6 {[%emt 0:00:01]} Qxc6 {[%emt 0:00:00]} (34... bxc6 $19 35. Re5 Rd5 36. Qe4+ Kh8) 35. Re5 $11 {[%emt 0:00:50] Against Rde7} Qg6 {[%emt 0:00:00] Threatens to win with ...Rf5.} 36. Rxh5+ {[%emt 0:01:11]} Qxh5 {[%emt 0:00:00]} 37. Rh3 $1 {[%emt 0:00:02]} Qxh3 {[%emt 0:00:00]} 38. Qe4+ {[%emt 0:00:04]} Kg8 {[%emt 0:00:00]} 39. gxh3 {[%emt 0:00:13]} gxh3 {[%emt 0:00:00][%mdl 4096] Endgame KQ-KRR} 40. Qe8+ {[%emt 0:00:07]} Kg7 {[%emt 0:00:00]} 41. Qe5+ {[%emt 0:00:24]} Rf6 {[%emt 0:00:00]} 42. Kh2 {[%emt 0:00:23]} b6 {[%emt 0:00:00]} 43. Kxh3 {[%emt 0:01:10]} Kf7 {[%emt 0:00:00]} 44. Qe4 {[%emt 0:01:32]} Re6 {[%emt 0:00:00]} 45. Qh7+ {[%emt 0:00:08]} Ke8 {[%emt 0:00:00]} 46. Qg8+ {[%emt 0:00:02]} Ke7 {[%emt 0:00:00]} 47. Kg4 {[%emt 0:01:22]} Kd6 {[%emt 0:00:00]} 48. Kf5 {[%emt 0:00:25]} Ree7 {[%emt 0:00:00]} 49. Qb8+ {[%emt 0:00:37]} Kc5 {[%emt 0:00:00]} 50. Qc8+ {[%emt 0:00:10]} Rc7 {[%emt 0:00:00]} 51. Qa6 {[%emt 0:00:25]} Rf7+ {[%emt 0:00:00]} 52. Kg4 $1 {[%emt 0:00:32]} Kc6 {[%emt 0:00:00]} 53. Qc4+ {[%emt 0:00:44]} (53. Qa8+ $11 Kb5 54. Qd5+ Ka6 55. Qa2+ Kb7 56. Qd5+ Ka7 57. Qa2+ Kb8 58. Qb3) 53... Kb7 $17 {[%emt 0:00:00]} 54. Qd5+ {[%emt 0:00:22]} Ka7 {[%emt 0:00:00]} 55. Qxd4 {[%emt 0:00:18]} (55. Qa2+ $17 Kb8 56. Qb3) 55... Rc8 $2 {[%emt 0:04:18]} ({Better is} 55... Rg7+ $19 56. Kf4 Rgd7) 56. Qa1+ $2 {[%emt 0:00:54]} (56. Kh4 $1 $15) 56... Kb7 $19 {[%emt 0:00:08]} 57. Qh1+ {[%emt 0:00:34]} Kc7 {[%emt 0:00:29]} 58. Qh2+ {[%emt 0:00:29] [#]} Kd7 $1 {[%emt 0:00:16]} ({Weaker is} 58... Kb7 59. Qg2+ Rc6 60. Qd5 $17) 59. Qh5 {[%emt 0:00:32]} Rg8+ {[%emt 0:01:07]} (59... Rcf8 $17) 60. Kh3 {[%emt 0:00:17]} Rfg7 {[%emt 0:01:09]} 61. Qd5+ {[%emt 0:00:39] The position is equal.} Kc7 {[%emt 0:00:21]} 62. Qc4+ {[%emt 0:00:24]} Kb8 {[%emt 0:01:11] ( -> ...Rh7+)} 63. Qf4+ {[%emt 0:00:07]} Rc7 {[%emt 0:01:25]} 64. Qd6 $1 {[%emt 0:00:09] Prevents Rd8.} Rh8+ {[%emt 0:00:10]} 65. Kg4 {[%emt 0:00:33]} Kb7 {[%emt 0:00:08]} 66. Qd5+ {[%emt 0:01:13]} Ka7 {[%emt 0:00:07]} 67. Qa2+ {[%emt 0:00:26]} Kb8 {[%emt 0:00:06] ...Rd8 is the strong threat.} 68. Qe6 {[%emt 0:00:12]} Rg7+ {[%emt 0:00:58]} 69. Kf3 {[%emt 0:00:09] Strongly threatening Qe5+.} Rf8+ {[%emt 0:00:18]} 70. Ke3 {[%emt 0:00:16]} Ka7 {[%emt 0:02:07] And now ...Rd8 would win.} 71. Qa2+ {[%emt 0:00:04]} Kb8 {[%emt 0:00:33]} 72. Qe6 {[%emt 0:00:02] Inhibits Re8.  Weighted Error Value: White=0.35/Black=0.21 (precise)} 1/2-1/2